[Event "Grandmaster Triathlon - Blitz (GM1)"]
[Site "Biel, Switzerland"]
[Date "2026.07.19"]
[Round "10.3"]
[White "Le, Quang Liem"]
[Black "Suleymanli, Aydin"]
[Result "1/2-1/2"]
[TimeControl "3 min + 2 sec"]
[WhiteTitle "-"]
[BlackTitle "-"]
[WhiteFideId "12401137"]
[BlackFideId "13413937"]
[WhiteElo "2690"]
[BlackElo "2559"]

1. d4 {[%clk 00:03:03]} Nf6 {[%clk 00:03:02]} {[%emt 00:00:03]} 2. c4 {[%clk
00:03:04]} {[%emt 00:00:01]} e6 {[%clk 00:03:03]} 3. Nf3 {[%clk 00:03:05]}
{[%emt 00:00:01]} d5 {[%clk 00:03:02]} {[%emt 00:00:02]} 4. g3 {[%clk
00:03:06]} {[%emt 00:00:01]} Bb4+ {[%clk 00:02:59]} {[%emt 00:00:06]} 5. Bd2
{[%clk 00:03:07]} {[%emt 00:00:02]} Be7 {[%clk 00:03:00]} {[%emt 00:00:01]} 6.
Bg2 {[%clk 00:03:08]} O-O {[%clk 00:03:00]} {[%emt 00:00:02]} 7. O-O {[%clk
00:03:08]} {[%emt 00:00:02]} Nbd7 {[%clk 00:03:01]} {[%emt 00:00:02]} 8. Qc2
{[%clk 00:03:09]} c6 {[%clk 00:03:02]} {[%emt 00:00:01]} 9. Rd1 {[%clk
00:03:09]} {[%emt 00:00:02]} a5 {[%clk 00:03:03]} {[%emt 00:00:01]} 10. Bf4
{[%clk 00:03:09]} {[%emt 00:00:01]} a4 {[%clk 00:03:04]} {[%emt 00:00:01]} 11.
h4 {[%clk 00:03:08]} {[%emt 00:00:03]} h6 {[%clk 00:03:04]} {[%emt 00:00:02]}
12. e3 {[%clk 00:02:55]} {[%emt 00:00:16]} b5 {[%clk 00:02:51]} {[%emt
00:00:15]} 13. c5 {[%clk 00:02:54]} {[%emt 00:00:03]} Ne4 {[%clk 00:02:51]}
{[%emt 00:00:01]} 14. Nbd2 {[%clk 00:02:41]} {[%emt 00:00:16]} f5 {[%clk
00:02:46]} {[%emt 00:00:07]} 15. Ne5 {[%clk 00:02:39]} {[%emt 00:00:04]} Nxe5
{[%clk 00:02:46]} {[%emt 00:00:02]} 16. Bxe5 {[%clk 00:02:40]} Bd7 {[%clk
00:02:47]} {[%emt 00:00:01]} 17. Nxe4 {[%clk 00:02:27]} {[%emt 00:00:14]} fxe4
{[%clk 00:02:45]} {[%emt 00:00:04]} 18. Rf1 {[%clk 00:02:28]} Bf6 {[%clk
00:02:42]} {[%emt 00:00:05]} 19. Bf4 {[%clk 00:02:16]} {[%emt 00:00:14]} Qe8
{[%clk 00:01:36]} {[%emt 00:01:08]} 20. Qc3 {[%clk 00:02:09]} {[%emt 00:00:08]}
Qg6 {[%clk 00:01:22]} {[%emt 00:00:16]} 21. f3 {[%clk 00:02:10]} {[%emt
00:00:02]} exf3 {[%clk 00:01:20]} {[%emt 00:00:05]} 22. Rxf3 {[%clk 00:02:09]}
{[%emt 00:00:02]} e5 {[%clk 00:01:16]} {[%emt 00:00:06]} 23. dxe5 {[%clk
00:02:06]} {[%emt 00:00:05]} Be7 {[%clk 00:01:18]} 24. Rf2 {[%clk 00:01:40]}
{[%emt 00:00:28]} Bf5 {[%clk 00:00:51]} {[%emt 00:00:29]} 25. Qd4 {[%clk
00:01:34]} {[%emt 00:00:08]} b4 {[%clk 00:00:45]} {[%emt 00:00:08]} 26. Qxb4
{[%clk 00:01:24]} {[%emt 00:00:12]} Rfb8 {[%clk 00:00:46]} {[%emt 00:00:01]} 27.
Qd4 {[%clk 00:01:22]} {[%emt 00:00:04]} Ra5 {[%clk 00:00:47]} {[%emt 00:00:01]}
28. Rc1 {[%clk 00:01:17]} {[%emt 00:00:06]} Rbb5 {[%clk 00:00:44]} {[%emt
00:00:06]} 29. Kh2 {[%clk 00:01:09]} {[%emt 00:00:10]} Bxc5 {[%clk 00:00:30]}
{[%emt 00:00:16]} 30. Qc3 {[%clk 00:01:07]} {[%emt 00:00:04]} Bd7 {[%clk
00:00:13]} {[%emt 00:00:19]} 31. Bf1 {[%clk 00:00:54]} {[%emt 00:00:15]} Bb4
{[%clk 00:00:15]} 32. Qc2 {[%clk 00:00:56]} Qxc2 {[%clk 00:00:12]} {[%emt
00:00:04]} 33. Rfxc2 {[%clk 00:00:57]} Rc5 {[%clk 00:00:09]} {[%emt 00:00:05]}
34. Bd3 {[%clk 00:00:55]} {[%emt 00:00:04]} a3 {[%clk 00:00:08]} {[%emt
00:00:04]} 35. b3 {[%clk 00:00:43]} {[%emt 00:00:13]} Rxc2+ {[%clk 00:00:08]}
{[%emt 00:00:01]} 36. Rxc2 {[%clk 00:00:44]} {[%emt 00:00:01]} Rc5 {[%clk
00:00:09]} 37. e4 {[%clk 00:00:42]} {[%emt 00:00:05]} Rxc2+ {[%clk 00:00:06]}
{[%emt 00:00:05]} 38. Bxc2 {[%clk 00:00:43]} Kf7 {[%clk 00:00:06]} {[%emt
00:00:02]} 39. Kg2 {[%clk 00:00:39]} {[%emt 00:00:05]} Bg4 {[%clk 00:00:07]}
{[%emt 00:00:01]} 40. exd5 {[%clk 00:00:34]} {[%emt 00:00:07]} cxd5 {[%clk
00:00:08]} {[%emt 00:00:01]} 41. Be3 {[%clk 00:00:32]} {[%emt 00:00:04]} Bc3
{[%clk 00:00:07]} {[%emt 00:00:03]} 42. Bc5 {[%clk 00:00:32]} {[%emt 00:00:01]}
Bb2 {[%clk 00:00:06]} {[%emt 00:00:03]} 43. Kf2 {[%clk 00:00:31]} {[%emt
00:00:03]} Ke6 {[%clk 00:00:07]} 44. Bf8 {[%clk 00:00:31]} {[%emt 00:00:02]}
Bd4+ {[%clk 00:00:04]} {[%emt 00:00:05]} 45. Kf1 {[%clk 00:00:32]} {[%emt
00:00:01]} Bxe5 {[%clk 00:00:05]} {[%emt 00:00:01]} 46. Bxa3 {[%clk 00:00:32]}
{[%emt 00:00:02]} Bxg3 {[%clk 00:00:06]} {[%emt 00:00:01]} 47. Bb2 {[%clk
00:00:30]} {[%emt 00:00:04]} g5 {[%clk 00:00:05]} {[%emt 00:00:03]} 48. hxg5
{[%clk 00:00:30]} {[%emt 00:00:01]} hxg5 {[%clk 00:00:06]} 49. a4 {[%clk
00:00:28]} {[%emt 00:00:05]} Bh3+ {[%clk 00:00:07]} 50. Ke2 {[%clk 00:00:25]}
{[%emt 00:00:04]} Bg4+ {[%clk 00:00:08]} {[%emt 00:00:01]} 51. Kf1 {[%clk
00:00:26]} {[%emt 00:00:02]} Bh3+ {[%clk 00:00:07]} {[%emt 00:00:03]} 52. Kg1
{[%clk 00:00:27]} Be1 {[%clk 00:00:07]} {[%emt 00:00:03]} 53. Bd4 {[%clk
00:00:27]} {[%emt 00:00:02]} g4 {[%clk 00:00:07]} {[%emt 00:00:03]} 54. Kh2
{[%clk 00:00:17]} {[%emt 00:00:11]} Bf1 {[%clk 00:00:08]} {[%emt 00:00:01]} 55.
Kg1 {[%clk 00:00:17]} {[%emt 00:00:02]} Be2 {[%clk 00:00:06]} {[%emt 00:00:04]}
56. Bc5 {[%clk 00:00:14]} {[%emt 00:00:06]} Kd7 {[%clk 00:00:05]} {[%emt
00:00:03]} 57. b4 {[%clk 00:00:15]} {[%emt 00:00:01]} Bf3 {[%clk 00:00:04]}
{[%emt 00:00:02]} 58. b5 {[%clk 00:00:14]} {[%emt 00:00:03]} g3 {[%clk
00:00:04]} {[%emt 00:00:02]} 59. Bb6 {[%clk 00:00:13]} {[%emt 00:00:03]} Kc8
{[%clk 00:00:04]} {[%emt 00:00:02]} 60. Bd3 {[%clk 00:00:09]} {[%emt 00:00:05]}
Kb7 {[%clk 00:00:05]} 61. a5 {[%clk 00:00:10]} {[%emt 00:00:02]} Bc3 {[%clk
00:00:04]} {[%emt 00:00:03]} 62. Kf1 {[%clk 00:00:08]} {[%emt 00:00:03]} Bb4
{[%clk 00:00:05]} {[%emt 00:00:02]} 63. Kg1 {[%clk 00:00:05]} {[%emt 00:00:04]}
Bc3 {[%clk 00:00:06]} {[%emt 00:00:01]} 64. Kf1 {[%clk 00:00:05]} {[%emt
00:00:02]} Bb4 {[%clk 00:00:07]} {[%emt 00:00:01]} 65. Bf5 {[%clk 00:00:04]}
{[%emt 00:00:03]} Bc3 {[%clk 00:00:05]} {[%emt 00:00:03]} 66. Bh3 {[%clk
00:00:04]} {[%emt 00:00:01]} Be4 {[%clk 00:00:05]} {[%emt 00:00:03]} 67. Bg2
{[%clk 00:00:04]} {[%emt 00:00:02]} Bd3+ {[%clk 00:00:06]} {[%emt 00:00:01]} 68.
Kg1 {[%clk 00:00:06]} Bxb5 {[%clk 00:00:05]} {[%emt 00:00:03]} 69. Bxd5+ {[%clk
00:00:07]} Ka6 {[%clk 00:00:06]} {[%emt 00:00:02]} 70. Kg2 {[%clk 00:00:08]}
{[%emt 00:00:02]} Bxa5 {[%clk 00:00:06]} {[%emt 00:00:02]} 71. Bxa5 {[%clk
00:00:09]} {[%emt 00:00:01]} Kxa5 {[%clk 00:00:07]} {[%emt 00:00:01]} 72. Kxg3
{[%clk 00:00:06]} 1/2-1/2